{"text_format":"3","workbook":"xlsx","n_sheets":2,"sheets":["Riepilogo budget","Dettagli budget"],"not_rendered":{"images":1,"defined_names":1},"read":"whole","date_system":"1900"}

{"sheet":"Riepilogo budget","index":0,"n_rows":28,"n_cols":7,"rows_kept":28}
[{"$nulls":6}," "]
[]
[null,"BUDGET TOTALE MATRIMONIO",{"v":20000,"d":"€ 20,000"}]
[]
[null,"USCITE","Allocazione \n%","Budget allocato","Costi \nStimati","Costi \nEffettivi"]
[null,"Ricevimento nuziale",{"v":0.5,"d":"50%"},{"$f":"Budget_Totale_Matrimonio*'Riepilogo budget'!$C6","v":{"v":10000,"d":"€ 10,000"}},{"$f":"Tabella_RicevimentoNuziale[[#Totals],[Costi stimati]]","v":{"v":0,"d":"€ 0"}},{"$f":"Tabella_RicevimentoNuziale[[#Totals],[Costi effettivi]]","v":{"v":0,"d":"€ 0"}}]
[null,"Abbigliamento",{"v":0.1,"d":"10%"},{"$f":"Budget_Totale_Matrimonio*'Riepilogo budget'!$C7","v":{"v":2000,"d":"€ 2,000"}},{"$f":"Tabella_Abbigliamento[[#Totals],[Costi stimati]]","v":{"v":0,"d":"€ 0"}},{"$f":"Tabella_Abbigliamento[[#Totals],[Costi effettivi]]","v":{"v":0,"d":"€ 0"}}]
[null,"Fiori e decorazioni",{"v":0.1,"d":"10%"},{"$f":"Budget_Totale_Matrimonio*'Riepilogo budget'!$C8","v":{"v":2000,"d":"€ 2,000"}},{"$f":"Tabella_FioriEDecorazioni[[#Totals],[Costi stimati]]","v":{"v":0,"d":"€ 0"}},{"$f":"Tabella_FioriEDecorazioni[[#Totals],[Costi effettivi]]","v":{"v":0,"d":"€ 0"}}]
[null,"Musica",{"v":0.1,"d":"10%"},{"$f":"Budget_Totale_Matrimonio*'Riepilogo budget'!$C9","v":{"v":2000,"d":"€ 2,000"}},{"$f":"Tabella_Musica[[#Totals],[Costi stimati]]","v":{"v":0,"d":"€ 0"}},{"$f":"Tabella_Musica[[#Totals],[Costi effettivi]]","v":{"v":0,"d":"€ 0"}}]
[null,"Foto e video",{"v":0.1,"d":"10%"},{"$f":"Budget_Totale_Matrimonio*'Riepilogo budget'!$C10","v":{"v":2000,"d":"€ 2,000"}},{"$f":"Tabella_FotografieEVideo[[#Totals],[Costi stimati]]","v":{"v":0,"d":"€ 0"}},{"$f":"Tabella_FotografieEVideo[[#Totals],[Costi effettivi]]","v":{"v":0,"d":"€ 0"}}]
[null,"Bomboniere e regali",{"v":0.03,"d":"3%"},{"$f":"Budget_Totale_Matrimonio*'Riepilogo budget'!$C11","v":{"v":600,"d":"€ 600"}},{"$f":"Tabella_BomboniereERegali[[#Totals],[Costi stimati]]","v":{"v":0,"d":"€ 0"}},{"$f":"Tabella_BomboniereERegali[[#Totals],[Costi effettivi]]","v":{"v":0,"d":"€ 0"}}]
[null,"Cerimonia",{"v":0.02,"d":"2%"},{"$f":"Budget_Totale_Matrimonio*'Riepilogo budget'!$C12","v":{"v":400,"d":"€ 400"}},{"$f":"Tabella_Cerimonia[[#Totals],[Costi stimati]]","v":{"v":0,"d":"€ 0"}},{"$f":"Tabella_Cerimonia[[#Totals],[Costi effettivi]]","v":{"v":0,"d":"€ 0"}}]
[null,"Elementi decorativi",{"v":0.02,"d":"2%"},{"$f":"Budget_Totale_Matrimonio*'Riepilogo budget'!$C13","v":{"v":400,"d":"€ 400"}},{"$f":"Tabella_Elementi_decorativi[[#Totals],[Costi stimati]]","v":{"v":0,"d":"€ 0"}},{"$f":"Tabella_Elementi_decorativi[[#Totals],[Costi effettivi]]","v":{"v":0,"d":"€ 0"}}]
[null,"Fedi nuziali",{"v":0.02,"d":"2%"},{"$f":"Budget_Totale_Matrimonio*'Riepilogo budget'!$C14","v":{"v":400,"d":"€ 400"}},{"$f":"Tabella_FediNuziali[[#Totals],[Costi stimati]]","v":{"v":0,"d":"€ 0"}},{"$f":"Tabella_FediNuziali[[#Totals],[Costi effettivi]]","v":{"v":0,"d":"€ 0"}}]
[null,"Trasporti",{"v":0.01,"d":"1%"},{"$f":"Budget_Totale_Matrimonio*'Riepilogo budget'!$C15","v":{"v":200,"d":"€ 200"}},{"$f":"Tabella_Trasporti[[#Totals],[Costi stimati]]","v":{"v":0,"d":"€ 0"}},{"$f":"Tabella_Trasporti[[#Totals],[Costi effettivi]]","v":{"v":0,"d":"€ 0"}}]
[null,"Totale",{"$f":"SUM(C6:C15)","v":{"v":1,"d":"100%"}},{"$f":"SUM(D6:D15)","v":{"v":20000,"d":"€ 20,000"}},{"v":0,"d":"€ 0"},{"v":0,"d":"€ 0"}]
[]
[null,"CONTRIBUTI"]
[null,"Origine del fondo","Contributo"]
[null,"Risparmi",{"v":10000,"d":"€ 10,000"}]
[null,"Mamma e papà del partner 1",{"v":4000,"d":"€ 4,000"}]
[null,"Nonni del partner 1",{"v":2000,"d":"€ 2,000"}]
[null,"Mamma e papà del partner 2",{"v":4000,"d":"€ 4,000"}]
[null,"Nonni del partner 2",{"v":4000,"d":"€ 4,000"}]
[null,"Altri contributi",{"v":2000,"d":"€ 2,000"}]
[null,"Totale",{"$f":"SUBTOTAL(109,Tabella_Contributi[Contributo])","v":{"v":26000,"d":"€ 26,000"}}]
[]
[null,{"$f":"IF(Tabella_Contributi[[#Totals],[Contributo]]<Budget_Totale_Matrimonio,\"Differenze da recuperare\",\"Fondi aggiuntivi disponibili\")","v":"Fondi aggiuntivi disponibili"},{"$f":"IF(Tabella_Contributi[[#Totals],[Contributo]]<Budget_Totale_Matrimonio,Budget_Totale_Matrimonio-Tabella_Contributi[[#Totals],[Contributo]],Tabella_Contributi[[#Totals],[Contributo]]-Budget_Totale_Matrimonio)","v":{"v":6000,"d":"€ 6,000"}}]

{"sheet":"Dettagli budget","index":1,"n_rows":80,"n_cols":4,"rows_kept":80}
[]
[null,"RICEVIMENTO NUZIALE","Costi stimati","Costi effettivi"]
[null,"Sede e noleggi"]
[null,"Cibo e servizi"]
[null,"Bevande"]
[null,"Torta"]
[null,"Spese varie"]
[null,"Totale",{"$f":"SUBTOTAL(109,Tabella_RicevimentoNuziale[Costi stimati])","v":{"v":0,"d":"€ 0.00"}},{"$f":"SUBTOTAL(109,Tabella_RicevimentoNuziale[Costi effettivi])","v":{"v":0,"d":"€ 0.00"}}]
[]
[null,"ABBIGLIAMENTO","Costi stimati","Costi effettivi"]
[null,"Smoking, completi e/o abiti"]
[null,"Modifiche"]
[null,"Copricapo e velo"]
[null,"Accessori"]
[null,"Acconciatura e makeup"]
[null,"Spese varie"]
[null,"Totale",{"$f":"SUBTOTAL(109,Tabella_Abbigliamento[Costi stimati])","v":{"v":0,"d":"€ 0.00"}},{"$f":"SUBTOTAL(109,Tabella_Abbigliamento[Costi effettivi])","v":{"v":0,"d":"€ 0.00"}}]
[]
[null,"FIORI E DECORAZIONI","Costi stimati","Costi effettivi"]
[null,"Addobbi floreali per cerimonia"]
[null,"Boccioli e cestino di Flower Girl"]
[null,"Cuscino tondo"]
[null,"Bouquet"]
[null,"Boutonnière"]
[null,"Corsage"]
[null,"Decorazioni per il ricevimento nuziale"]
[null,"Illuminazione"]
[null,"Spese varie"]
[null,"Totale",{"$f":"SUBTOTAL(109,Tabella_FioriEDecorazioni[Costi stimati])","v":{"v":0,"d":"€ 0.00"}},{"$f":"SUBTOTAL(109,Tabella_FioriEDecorazioni[Costi effettivi])","v":{"v":0,"d":"€ 0.00"}}]
[]
[null,"MUSICA","Costi stimati","Costi effettivi"]
[null,"Musicisti per la cerimonia"]
[null,"Musicisti per il cocktail"]
[null,"Gruppo musicale per il ricevimento nuziale, deejay o intrattenimento"]
[null,"Noleggio di impianto audio o pista da ballo"]
[null,"Spese varie"]
[null,"Totale",{"$f":"SUBTOTAL(109,Tabella_Musica[Costi stimati])","v":{"v":0,"d":"€ 0.00"}},{"$f":"SUBTOTAL(109,Tabella_Musica[Costi effettivi])","v":{"v":0,"d":"€ 0.00"}}]
[]
[null,"FOTO E VIDEO","Costi stimati","Costi effettivi"]
[null,"Fotografia"]
[null,"Servizi video"]
[null,"Stampe e album aggiuntivi"]
[null,"Spese varie"]
[null,"Totale",{"$f":"SUBTOTAL(109,Tabella_FotografieEVideo[Costi stimati])","v":{"v":0,"d":"€ 0.00"}},{"$f":"SUBTOTAL(109,Tabella_FotografieEVideo[Costi effettivi])","v":{"v":0,"d":"€ 0.00"}}]
[]
[null,"BOMBONIERE E REGALI","Costi stimati","Costi effettivi"]
[null,"Regali di benvenuto"]
[null,"Regali per la festa"]
[null,"Spese varie"]
[null,"Totale",{"$f":"SUBTOTAL(109,Tabella_BomboniereERegali[Costi stimati])","v":{"v":0,"d":"€ 0.00"}},{"$f":"SUBTOTAL(109,Tabella_BomboniereERegali[Costi effettivi])","v":{"v":0,"d":"€ 0.00"}}]
[]
[null,"CERIMONIA","Costi stimati","Costi effettivi"]
[null,"Costo del sito"]
[null,"Costo dell’officiante e donazione alla Chiesa"]
[null,"Spese varie"]
[null,"Totale",{"$f":"SUBTOTAL(109,Tabella_Cerimonia[Costi stimati])","v":{"v":0,"d":"€ 0.00"}},{"$f":"SUBTOTAL(109,Tabella_Cerimonia[Costi effettivi])","v":{"v":0,"d":"€ 0.00"}}]
[]
[null,"ELEMENTI DECORATIVI","Costi stimati","Costi effettivi"]
[null,"Partecipazioni"]
[null,"Inviti e conferme"]
[null,"Programmi"]
[null,"Posti a sedere e segnaposto"]
[null,"Schede menu"]
[null,"Biglietti di ringraziamento"]
[null,"Affrancatura"]
[null,"Spese varie"]
[null,"Totale",{"$f":"SUBTOTAL(109,Tabella_Elementi_decorativi[Costi stimati])","v":{"v":0,"d":"€ 0.00"}},{"$f":"SUBTOTAL(109,Tabella_Elementi_decorativi[Costi effettivi])","v":{"v":0,"d":"€ 0.00"}}]
[]
[null,"FEDI NUZIALI","Costi stimati","Costi effettivi"]
[null,"Fedi nuziali"]
[null,"Accessori per fedi"]
[null,"Totale",{"$f":"SUBTOTAL(109,Tabella_FediNuziali[Costi stimati])","v":{"v":0,"d":"€ 0.00"}},{"$f":"SUBTOTAL(109,Tabella_FediNuziali[Costi effettivi])","v":{"v":0,"d":"€ 0.00"}}]
[]
[null,"TRASPORTI","Costi stimati","Costi effettivi"]
[null,"Noleggio auto principale"]
[null,"Noleggio auto ospiti"]
[null,"Trasporti per ospiti che vivono in altre città"]
[null,"Servizio di parcheggio"]
[null,"Spese varie"]
[null,"Totale",{"$f":"SUBTOTAL(109,Tabella_Trasporti[Costi stimati])","v":{"v":0,"d":"€ 0.00"}},{"$f":"SUBTOTAL(109,Tabella_Trasporti[Costi effettivi])","v":{"v":0,"d":"€ 0.00"}}]